[Event "*** Titled Tuesday Blitz"]
[Site "Chess.com"]
[Date "2019.05.07"]
[Round "5"]
[White "valeriocarnicelli"]
[Black "Keithonsky"]
[Result "1/2-1/2"]
[WhiteElo "2530"]
[BlackElo "2382"]
[TimeControl "180+2"]
[EndTime "14:04:57 PDT"]
[Termination "Game drawn by agreement"]

1. e4 {[%clk 0:03:01.9]} 1... c5 {[%clk 0:03:00.5]} 2. Nf3 {[%clk 0:02:45.4]}
2... d6 {[%clk 0:03:01.7]} 3. d4 {[%clk 0:02:46.4]} 3... cxd4 {[%clk 0:03:03.1]}
4. Nxd4 {[%clk 0:02:48.3]} 4... Nf6 {[%clk 0:03:04.6]} 5. Nc3 {[%clk 0:02:49.8]}
5... a6 {[%clk 0:03:04.8]} 6. f3 {[%clk 0:02:51]} 6... e5 {[%clk 0:03:04.1]} 7.
Nb3 {[%clk 0:02:52.3]} 7... Be6 {[%clk 0:03:05.3]} 8. Be3 {[%clk 0:02:53.7]}
8... Nbd7 {[%clk 0:03:06.7]} 9. Qd2 {[%clk 0:02:55.2]} 9... Rc8 {[%clk 0:03:08]}
10. O-O-O {[%clk 0:02:56.5]} 10... b5 {[%clk 0:03:09.2]} 11. g4 {[%clk 0:02:56]}
11... Nb6 {[%clk 0:03:10.6]} 12. Qf2 {[%clk 0:02:49.6]} 12... Nc4 {[%clk
0:03:06]} 13. Bxc4 {[%clk 0:02:50.2]} 13... bxc4 {[%clk 0:03:06.7]} 14. Na5
{[%clk 0:02:51.1]} 14... Qxa5 {[%clk 0:03:03.6]} 15. Bb6 {[%clk 0:02:50.9]}
15... Qb4 {[%clk 0:02:53.2]} 16. a3 {[%clk 0:02:51.3]} 16... Qxc3 {[%clk
0:02:51.4]} 17. bxc3 {[%clk 0:02:52.1]} 17... d5 {[%clk 0:02:53.3]} 18. g5
{[%clk 0:02:45.8]} 18... Bxa3+ {[%clk 0:02:53.6]} 19. Kd2 {[%clk 0:02:46.9]}
19... Nd7 {[%clk 0:02:49.5]} 20. Ra1 {[%clk 0:02:44.3]} 20... Be7 {[%clk
0:02:44.8]} 21. h4 {[%clk 0:02:39.3]} 21... d4 {[%clk 0:02:40.7]} 22. cxd4
{[%clk 0:02:37.3]} 22... c3+ {[%clk 0:02:39.4]} 23. Kd1 {[%clk 0:02:36.7]} 23...
Nxb6 {[%clk 0:02:40.7]} 24. d5 {[%clk 0:02:35.6]} 24... Bc5 {[%clk 0:02:42.2]}
25. Qe2 {[%clk 0:02:31.5]} 25... Bd7 {[%clk 0:02:42.1]} 26. Qxa6 {[%clk
0:02:20.5]} 26... O-O {[%clk 0:02:40.5]} 27. Qd3 {[%clk 0:02:17.8]} 27... Ra8
{[%clk 0:02:36]} 28. Ke2 {[%clk 0:02:16.5]} 28... Bd4 {[%clk 0:02:34.9]} 29.
Rhb1 {[%clk 0:02:12.1]} 29... Na4 {[%clk 0:02:31.3]} 1/2-1/2

[Event "*** Titled Tuesday Blitz"]
[Site "Chess.com"]
[Date "2019.05.07"]
[Round "5"]
[White "j_coca"]
[Black "el-reptiliano"]
[Result "0-1"]
[WhiteElo "2017"]
[BlackElo "2171"]
[TimeControl "180+2"]
[EndTime "14:05:17 PDT"]
[Termination "el-reptiliano won by resignation"]

1. f4 {[%clk 0:03:01.9]} 1... d5 {[%clk 0:02:56]} 2. Nf3 {[%clk 0:03:01.7]} 2...
c5 {[%clk 0:02:56.3]} 3. e3 {[%clk 0:03:02.7]} 3... Nc6 {[%clk 0:02:56.4]} 4. d4
{[%clk 0:03:04]} 4... e6 {[%clk 0:02:49.8]} 5. c3 {[%clk 0:03:04.9]} 5... Bd6
{[%clk 0:02:49.9]} 6. Bd3 {[%clk 0:03:05.1]} 6... Nge7 {[%clk 0:02:47.6]} 7. O-O
{[%clk 0:03:05.4]} 7... O-O {[%clk 0:02:46.4]} 8. Ne5 {[%clk 0:03:06.7]} 8...
Nf5 {[%clk 0:02:11.3]} 9. Rf3 {[%clk 0:02:53.8]} 9... Nce7 {[%clk 0:01:49.9]}
10. Rh3 {[%clk 0:02:53.6]} 10... h6 {[%clk 0:01:35.8]} 11. Nd2 {[%clk
0:02:50.3]} 11... Bxe5 {[%clk 0:01:32.3]} 12. fxe5 {[%clk 0:02:51.1]} 12... Ng6
{[%clk 0:01:28.5]} 13. Kh1 {[%clk 0:02:48.7]} 13... f6 {[%clk 0:01:27.2]} 14.
exf6 {[%clk 0:02:48]} 14... Qxf6 {[%clk 0:01:29.1]} 15. Nf3 {[%clk 0:02:48.6]}
15... e5 {[%clk 0:01:29.2]} 16. dxe5 {[%clk 0:02:46.6]} 16... Nxe5 {[%clk
0:01:29]} 17. Bxf5 {[%clk 0:02:47.1]} 17... Qxf5 {[%clk 0:01:28.8]} 18. Qxd5+
{[%clk 0:02:47]} 18... Be6 {[%clk 0:01:21.7]} 19. Qxc5 {[%clk 0:02:28.9]} 19...
Rad8 {[%clk 0:01:19.9]} 20. Rg3 {[%clk 0:02:02.1]} 20... Rd1+ {[%clk 0:01:15.7]}
21. Ng1 {[%clk 0:02:02.9]} 21... Rxg1+ {[%clk 0:01:16.1]} 0-1

[Event "*** Titled Tuesday Blitz"]
[Site "Chess.com"]
[Date "2019.05.07"]
[Round "5"]
[White "Hydrargyrum_Girl"]
[Black "Satscho"]
[Result "1/2-1/2"]
[WhiteElo "2388"]
[BlackElo "2294"]
[TimeControl "180+2"]
[EndTime "14:05:38 PDT"]
[Termination "Game drawn by repetition"]

1. e3 {[%clk 0:03:01.9]} 1... Nf6 {[%clk 0:02:57]} 2. Ne2 {[%clk 0:03:03.1]}
2... g6 {[%clk 0:02:56.9]} 3. g3 {[%clk 0:03:04.3]} 3... Bg7 {[%clk 0:02:58]} 4.
Bg2 {[%clk 0:03:06.2]} 4... O-O {[%clk 0:02:59.2]} 5. d3 {[%clk 0:03:07.6]} 5...
d6 {[%clk 0:03:00.6]} 6. O-O {[%clk 0:03:08.8]} 6... e5 {[%clk 0:02:57]} 7. Nd2
{[%clk 0:03:10.7]} 7... Nc6 {[%clk 0:02:51.9]} 8. h3 {[%clk 0:03:12.2]} 8... Be6
{[%clk 0:02:49.3]} 9. e4 {[%clk 0:03:11.7]} 9... Qd7 {[%clk 0:02:28.1]} 10. Kh2
{[%clk 0:03:05.9]} 10... Ne8 {[%clk 0:02:25.8]} 11. f4 {[%clk 0:03:00.3]} 11...
f5 {[%clk 0:02:25.9]} 12. fxe5 {[%clk 0:03:01.3]} 12... dxe5 {[%clk 0:02:25.6]}
13. exf5 {[%clk 0:03:02.7]} 13... gxf5 {[%clk 0:02:25.9]} 14. Nf3 {[%clk
0:03:01.1]} 14... Kh8 {[%clk 0:02:17.7]} 15. Ng5 {[%clk 0:03:02.2]} 15... Bg8
{[%clk 0:02:18.2]} 16. Nc3 {[%clk 0:03:01.8]} 16... Rd8 {[%clk 0:02:08.6]} 17.
Qh5 {[%clk 0:03:01.8]} 17... Nf6 {[%clk 0:01:57.3]} 18. Qe2 {[%clk 0:03:02.7]}
18... Nd4 {[%clk 0:01:55.3]} 19. Qd1 {[%clk 0:03:03]} 19... c6 {[%clk
0:01:46.9]} 20. Nf3 {[%clk 0:03:04]} 20... Nd5 {[%clk 0:01:41.9]} 21. Nxd4
{[%clk 0:03:03.7]} 21... exd4 {[%clk 0:01:42.7]} 22. Nxd5 {[%clk 0:03:05.1]}
22... Bxd5 {[%clk 0:01:43.1]} 23. Bxd5 {[%clk 0:03:06]} 23... Qxd5 {[%clk
0:01:43.4]} 24. Bg5 {[%clk 0:03:06.9]} 24... Rde8 {[%clk 0:01:44.1]} 25. Qd2
{[%clk 0:03:06.5]} 25... c5 {[%clk 0:01:37.3]} 26. Rae1 {[%clk 0:03:07]} 26...
b5 {[%clk 0:01:38.4]} 27. Bh6 {[%clk 0:03:05.9]} 27... Qf7 {[%clk 0:01:30.5]}
28. Bxg7+ {[%clk 0:03:06.4]} 28... Qxg7 {[%clk 0:01:30.9]} 29. Rxe8 {[%clk
0:03:08.1]} 29... Rxe8 {[%clk 0:01:32.1]} 30. Re1 {[%clk 0:03:09.9]} 30... Re5
{[%clk 0:01:25.5]} 31. Rxe5 {[%clk 0:03:02.9]} 31... Qxe5 {[%clk 0:01:27.4]} 32.
h4 {[%clk 0:03:04.3]} 32... c4 {[%clk 0:01:23.8]} 33. Qh6 {[%clk 0:02:59.9]}
33... Qe2+ {[%clk 0:01:20.1]} 34. Kh3 {[%clk 0:03:01.2]} 34... Qg4+ {[%clk
0:01:20.5]} 35. Kh2 {[%clk 0:03:02.6]} 35... Qe2+ {[%clk 0:01:21.1]} 36. Kh3
{[%clk 0:03:04]} 36... Qg4+ {[%clk 0:01:11.3]} 37. Kg2 {[%clk 0:03:01.4]} 37...
Qe2+ {[%clk 0:01:11.8]} 38. Kh3 {[%clk 0:03:02.8]} 38... Qg4+ {[%clk 0:01:12.8]}
39. Kh2 {[%clk 0:03:03.9]} 39... Qe2+ {[%clk 0:01:13.2]} 1/2-1/2

[Event "*** Titled Tuesday Blitz"]
[Site "Chess.com"]
[Date "2019.05.07"]
[Round "5"]
[White "NateSolon"]
[Black "Thee-Chessboy"]
[Result "0-1"]
[WhiteElo "2495"]
[BlackElo "2372"]
[TimeControl "180+2"]
[EndTime "14:06:19 PDT"]
[Termination "Thee-Chessboy won by resignation"]

1. d4 {[%clk 0:03:01.9]} 1... Nf6 {[%clk 0:03:00.4]} 2. Bf4 {[%clk 0:03:02.7]}
2... c5 {[%clk 0:03:00.5]} 3. d5 {[%clk 0:03:00.4]} 3... d6 {[%clk 0:02:58.4]}
4. Nc3 {[%clk 0:02:59.5]} 4... g6 {[%clk 0:02:58.8]} 5. e4 {[%clk 0:03:00.4]}
5... a6 {[%clk 0:02:57.4]} 6. a4 {[%clk 0:02:46.3]} 6... Bg7 {[%clk 0:02:57.9]}
7. Nf3 {[%clk 0:02:47.4]} 7... Bg4 {[%clk 0:02:53.7]} 8. Be2 {[%clk 0:02:44.4]}
8... Nbd7 {[%clk 0:02:48.5]} 9. Nd2 {[%clk 0:02:39.4]} 9... Bxe2 {[%clk
0:02:47.9]} 10. Qxe2 {[%clk 0:02:41.3]} 10... O-O {[%clk 0:02:41.3]} 11. O-O
{[%clk 0:02:26.4]} 11... Ne8 {[%clk 0:02:23.7]} 12. Nc4 {[%clk 0:02:24.6]} 12...
Nc7 {[%clk 0:02:16.8]} 13. a5 {[%clk 0:02:20.4]} 13... Nb5 {[%clk 0:02:15.3]}
14. Na4 {[%clk 0:02:18.4]} 14... Nd4 {[%clk 0:02:07.2]} 15. Qd3 {[%clk
0:02:14.5]} 15... f5 {[%clk 0:02:01.6]} 16. f3 {[%clk 0:01:37.7]} 16... fxe4
{[%clk 0:01:45.6]} 17. fxe4 {[%clk 0:01:39.6]} 17... Rxf4 {[%clk 0:01:22.6]} 18.
Rxf4 {[%clk 0:01:39.8]} 18... Ne5 {[%clk 0:01:22.5]} 19. Nxe5 {[%clk 0:01:39.4]}
19... Bxe5 {[%clk 0:01:22.3]} 20. Rff1 {[%clk 0:01:31.7]} 20... Qxa5 {[%clk
0:01:18.4]} 21. c3 {[%clk 0:01:32.5]} 21... Nb3 {[%clk 0:01:15]} 22. Ra3 {[%clk
0:01:32.9]} 22... c4 {[%clk 0:01:07.4]} 23. Qxc4 {[%clk 0:01:32]} 23... Nd2
{[%clk 0:01:07.8]} 0-1

[Event "*** Titled Tuesday Blitz"]
[Site "Chess.com"]
[Date "2019.05.07"]
[Round "5"]
[White "monalize"]
[Black "Naruto-K"]
[Result "1-0"]
[WhiteElo "2341"]
[BlackElo "2510"]
[TimeControl "180+2"]
[EndTime "14:06:46 PDT"]
[Termination "monalize won on time"]

1. e4 {[%clk 0:03:01.9]} 1... e6 {[%clk 0:02:56]} 2. d4 {[%clk 0:03:02.1]} 2...
d5 {[%clk 0:02:56.7]} 3. Nd2 {[%clk 0:03:03.3]} 3... Be7 {[%clk 0:02:53]} 4.
Ngf3 {[%clk 0:03:03.1]} 4... Nf6 {[%clk 0:02:51.9]} 5. Bd3 {[%clk 0:03:01.1]}
5... c5 {[%clk 0:02:42.9]} 6. dxc5 {[%clk 0:02:53.3]} 6... dxe4 {[%clk 0:02:43]}
7. Bxe4 {[%clk 0:02:53.9]} 7... Nxe4 {[%clk 0:01:17]} 8. Nxe4 {[%clk 0:02:53.3]}
8... Qxd1+ {[%clk 0:01:18.9]} 9. Kxd1 {[%clk 0:02:54.1]} 9... O-O {[%clk
0:00:55.2]} 10. Be3 {[%clk 0:02:53.7]} 10... Nd7 {[%clk 0:00:44.8]} 11. b4
{[%clk 0:02:44.9]} 11... e5 {[%clk 0:00:35.3]} 12. Nc3 {[%clk 0:02:28]} 12... f5
{[%clk 0:00:29.2]} 13. Nd5 {[%clk 0:02:27.5]} 13... Bd8 {[%clk 0:00:30.4]} 14.
c3 {[%clk 0:02:12.1]} 14... f4 {[%clk 0:00:15.7]} 15. Bd2 {[%clk 0:02:12.2]}
15... g5 {[%clk 0:00:11.3]} 16. Re1 {[%clk 0:02:10.2]} 16... Re8 {[%clk
0:00:09.5]} 17. Kc2 {[%clk 0:02:01.8]} 17... g4 {[%clk 0:00:10.6]} 18. Nd4
{[%clk 0:02:01.2]} 18... Kf7 {[%clk 0:00:06.1]} 19. Nb5 {[%clk 0:01:59.6]} 19...
Kg6 {[%clk 0:00:03.6]} 20. Nd6 {[%clk 0:01:59.3]} 20... Rf8 {[%clk 0:00:03.2]}
21. f3 {[%clk 0:01:58.9]} 21... h5 {[%clk 0:00:03.7]} 22. Re2 {[%clk 0:01:58]}
22... Rb8 {[%clk 0:00:02.1]} 23. Rae1 {[%clk 0:01:57.4]} 23... Bg5 {[%clk
0:00:02.5]} 24. Nc4 {[%clk 0:01:53.7]} 1-0

[Event "*** Titled Tuesday Blitz"]
[Site "Chess.com"]
[Date "2019.05.07"]
[Round "5"]
[White "PlotnikovPavel"]
[Black "superstructure"]
[Result "0-1"]
[WhiteElo "2345"]
[BlackElo "2334"]
[TimeControl "180+2"]
[EndTime "14:06:54 PDT"]
[Termination "superstructure won on time"]

1. e4 {[%clk 0:02:55.8]} 1... e5 {[%clk 0:03:00.3]} 2. Nf3 {[%clk 0:02:55.8]}
2... Nc6 {[%clk 0:03:01.4]} 3. Nc3 {[%clk 0:02:56.7]} 3... Nf6 {[%clk
0:03:01.8]} 4. Be2 {[%clk 0:02:58]} 4... d5 {[%clk 0:03:01.7]} 5. exd5 {[%clk
0:02:58.5]} 5... Nxd5 {[%clk 0:03:03.6]} 6. O-O {[%clk 0:02:59.4]} 6... Nxc3
{[%clk 0:03:00.7]} 7. bxc3 {[%clk 0:02:59.8]} 7... Bd6 {[%clk 0:03:01]} 8. d4
{[%clk 0:02:59.4]} 8... exd4 {[%clk 0:02:54.2]} 9. cxd4 {[%clk 0:03:00.1]} 9...
O-O {[%clk 0:02:54.6]} 10. c3 {[%clk 0:02:55.1]} 10... h6 {[%clk 0:02:54.4]} 11.
Re1 {[%clk 0:02:55.5]} 11... Qf6 {[%clk 0:02:51.6]} 12. Nd2 {[%clk 0:02:42.6]}
12... Bf5 {[%clk 0:02:36.6]} 13. Bf3 {[%clk 0:02:42.2]} 13... Rfe8 {[%clk
0:02:34.9]} 14. g3 {[%clk 0:02:33.6]} 14... Qg6 {[%clk 0:02:26.6]} 15. Bb2
{[%clk 0:02:26.9]} 15... Bc2 {[%clk 0:02:07.9]} 16. Qc1 {[%clk 0:02:26.6]} 16...
Bd3 {[%clk 0:02:05.5]} 17. c4 {[%clk 0:02:20.4]} 17... Bb4 {[%clk 0:01:51.2]}
18. Bc3 {[%clk 0:02:19]} 18... Rxe1+ {[%clk 0:01:50.4]} 19. Qxe1 {[%clk
0:02:16.9]} 19... Bxc3 {[%clk 0:01:51.9]} 20. Rc1 {[%clk 0:02:15.3]} 20... Bxd2
{[%clk 0:01:44.8]} 21. Qxd2 {[%clk 0:02:16.1]} 21... Nxd4 {[%clk 0:01:45.5]} 22.
Bxb7 {[%clk 0:02:15.6]} 22... Rb8 {[%clk 0:01:45.1]} 23. Bd5 {[%clk 0:02:14.8]}
23... Ne2+ {[%clk 0:01:43.3]} 0-1

[Event "*** Titled Tuesday Blitz"]
[Site "Chess.com"]
[Date "2019.05.07"]
[Round "5"]
[White "hansen"]
[Black "Gubajdullin"]
[Result "1-0"]
[WhiteElo "2777"]
[BlackElo "2546"]
[TimeControl "180+2"]
[EndTime "14:07:02 PDT"]
[Termination "hansen won by resignation"]

1. e4 {[%clk 0:03:01.9]} 1... c6 {[%clk 0:02:59.2]} 2. d4 {[%clk 0:03:01.4]}
2... d5 {[%clk 0:03:00.2]} 3. e5 {[%clk 0:02:57.5]} 3... Bf5 {[%clk 0:03:00.7]}
4. Nf3 {[%clk 0:02:49.7]} 4... e6 {[%clk 0:03:00.5]} 5. Be2 {[%clk 0:02:47.2]}
5... Nd7 {[%clk 0:02:58.8]} 6. O-O {[%clk 0:02:34.7]} 6... h6 {[%clk 0:02:57.8]}
7. Nbd2 {[%clk 0:02:28.8]} 7... Ne7 {[%clk 0:02:56.7]} 8. Nb3 {[%clk 0:02:27]}
8... Bh7 {[%clk 0:02:56.7]} 9. c3 {[%clk 0:02:14.3]} 9... Ng6 {[%clk 0:02:56.7]}
10. Be3 {[%clk 0:02:12.3]} 10... Be7 {[%clk 0:02:57]} 11. Ne1 {[%clk 0:02:13]}
11... O-O {[%clk 0:02:55.5]} 12. Bd3 {[%clk 0:02:12.9]} 12... Qc7 {[%clk
0:02:51.1]} 13. f4 {[%clk 0:02:12]} 13... c5 {[%clk 0:02:48.5]} 14. f5 {[%clk
0:02:13.2]} 14... c4 {[%clk 0:02:42.3]} 15. fxg6 {[%clk 0:02:13.9]} 15... fxg6
{[%clk 0:02:43.3]} 16. Qg4 {[%clk 0:02:04.7]} 16... Rxf1+ {[%clk 0:02:39.1]} 17.
Bxf1 {[%clk 0:02:05.2]} 17... cxb3 {[%clk 0:02:34]} 18. Qxe6+ {[%clk 0:02:05.8]}
18... Kh8 {[%clk 0:02:34.6]} 19. Qxe7 {[%clk 0:02:05.1]} 19... bxa2 {[%clk
0:02:29.8]} 20. e6 {[%clk 0:02:04]} 20... Qb6 {[%clk 0:02:17.5]} 21. exd7 {[%clk
0:02:01.7]} 21... Qxb2 {[%clk 0:02:14.9]} 22. Bf4 {[%clk 0:01:31.4]} 22... Qxc3
{[%clk 0:00:38.4]} 23. Be5 {[%clk 0:01:30.5]} 23... Qe3+ {[%clk 0:00:33.9]} 24.
Kh1 {[%clk 0:01:31.4]} 24... Rg8 {[%clk 0:00:23.2]} 25. d8=Q {[%clk 0:01:31.5]}
25... Qxe5 {[%clk 0:00:18.5]} 26. dxe5 {[%clk 0:01:28.2]} 1-0

[Event "*** Titled Tuesday Blitz"]
[Site "Chess.com"]
[Date "2019.05.07"]
[Round "5"]
[White "albano87"]
[Black "Babas"]
[Result "0-1"]
[WhiteElo "2214"]
[BlackElo "2432"]
[TimeControl "180+2"]
[EndTime "14:07:06 PDT"]
[Termination "Babas won by checkmate"]

1. d4 {[%clk 0:03:01.8]} 1... Nf6 {[%clk 0:03:00.3]} 2. Nf3 {[%clk 0:03:01.6]}
2... c5 {[%clk 0:03:00.3]} 3. g3 {[%clk 0:03:03.5]} 3... cxd4 {[%clk 0:03:00.6]}
4. Qxd4 {[%clk 0:02:57.6]} 4... Nc6 {[%clk 0:03:01]} 5. Qa4 {[%clk 0:02:57.2]}
5... e5 {[%clk 0:03:00.2]} 6. Bg2 {[%clk 0:02:52.2]} 6... e4 {[%clk 0:02:27.1]}
7. Nd4 {[%clk 0:02:43.6]} 7... d5 {[%clk 0:02:16.1]} 8. O-O {[%clk 0:02:33.2]}
8... Bd7 {[%clk 0:02:12.3]} 9. Rd1 {[%clk 0:02:31.7]} 9... Bc5 {[%clk
0:02:08.3]} 10. Nxc6 {[%clk 0:02:21.9]} 10... Bxc6 {[%clk 0:01:42.3]} 11. Qb3
{[%clk 0:02:20.9]} 11... O-O {[%clk 0:01:19.5]} 12. Be3 {[%clk 0:02:09.4]} 12...
Qe7 {[%clk 0:00:17.2]} 13. Bxc5 {[%clk 0:02:00.8]} 13... Qxc5 {[%clk 0:00:19.1]}
14. e3 {[%clk 0:02:02.7]} 14... a5 {[%clk 0:00:18.6]} 15. Qc3 {[%clk 0:02:02.4]}
15... Qe7 {[%clk 0:00:14.5]} 16. Nd2 {[%clk 0:02:00.9]} 16... a4 {[%clk
0:00:14.2]} 17. Qd4 {[%clk 0:01:56.9]} 17... h5 {[%clk 0:00:15]} 18. h4 {[%clk
0:01:51.7]} 18... Rac8 {[%clk 0:00:13]} 19. Bh3 {[%clk 0:01:47.2]} 19... Bd7
{[%clk 0:00:12.7]} 20. Bxd7 {[%clk 0:01:43.2]} 20... Qxd7 {[%clk 0:00:14.6]} 21.
c3 {[%clk 0:01:44]} 21... Qh3 {[%clk 0:00:15.4]} 22. Qe5 {[%clk 0:01:41.1]}
22... Ng4 {[%clk 0:00:15]} 23. Qxe4 {[%clk 0:01:23]} 23... Qh2+ {[%clk
0:00:14.5]} 24. Kf1 {[%clk 0:01:23.5]} 24... Qxf2# {[%clk 0:00:16.4]} 0-1

[Event "*** Titled Tuesday Blitz"]
[Site "Chess.com"]
[Date "2019.05.07"]
[Round "5"]
[White "mikhaillushenkov"]
[Black "1e41-0"]
[Result "1/2-1/2"]
[WhiteElo "2747"]
[BlackElo "2474"]
[TimeControl "180+2"]
[EndTime "14:07:15 PDT"]
[Termination "Game drawn by repetition"]

1. Nf3 {[%clk 0:03:01.9]} 1... d5 {[%clk 0:03:00.7]} 2. d4 {[%clk 0:03:02.9]}
2... Bf5 {[%clk 0:03:01.2]} 3. c4 {[%clk 0:03:00.3]} 3... e6 {[%clk 0:03:01.7]}
4. Nc3 {[%clk 0:02:57.1]} 4... Nf6 {[%clk 0:03:00.5]} 5. Qb3 {[%clk 0:02:40]}
5... Nc6 {[%clk 0:02:58.6]} 6. Bg5 {[%clk 0:02:30.2]} 6... Be7 {[%clk
0:02:49.4]} 7. cxd5 {[%clk 0:02:29.3]} 7... Nxd5 {[%clk 0:02:43.5]} 8. Bxe7
{[%clk 0:02:28.8]} 8... Ncxe7 {[%clk 0:02:44.3]} 9. e3 {[%clk 0:02:27.6]} 9...
O-O {[%clk 0:02:42.4]} 10. Be2 {[%clk 0:02:22.8]} 10... Nxc3 {[%clk 0:02:43.5]}
11. bxc3 {[%clk 0:02:21.6]} 11... c5 {[%clk 0:02:40.3]} 12. O-O {[%clk
0:02:18.7]} 12... Qc7 {[%clk 0:02:38.4]} 13. a4 {[%clk 0:02:14.7]} 13... Rac8
{[%clk 0:02:36.8]} 14. a5 {[%clk 0:02:13.7]} 14... Be4 {[%clk 0:02:36.9]} 15.
Ne5 {[%clk 0:02:03.7]} 15... Nc6 {[%clk 0:02:34.2]} 16. Nxc6 {[%clk 0:01:29]}
16... Bxc6 {[%clk 0:02:36.1]} 17. Rfb1 {[%clk 0:01:23.8]} 17... Rfd8 {[%clk
0:02:36.6]} 18. Bf1 {[%clk 0:01:24]} 18... e5 {[%clk 0:02:20.6]} 19. dxc5 {[%clk
0:00:58]} 19... Bd5 {[%clk 0:02:20.1]} 20. c4 {[%clk 0:00:54.3]} 20... Be4
{[%clk 0:02:21.2]} 21. Rb2 {[%clk 0:00:52.9]} 21... Qxc5 {[%clk 0:02:22.2]} 22.
Qb5 {[%clk 0:00:48.5]} 22... h6 {[%clk 0:01:49.2]} 23. g3 {[%clk 0:00:48.4]}
23... Rd6 {[%clk 0:01:39]} 24. Bg2 {[%clk 0:00:45.1]} 24... Bxg2 {[%clk
0:01:38.9]} 25. Qxc5 {[%clk 0:00:45.6]} 25... Rxc5 {[%clk 0:01:37.9]} 26. Kxg2
{[%clk 0:00:47.2]} 26... b6 {[%clk 0:01:35.2]} 27. axb6 {[%clk 0:00:47.9]} 27...
axb6 {[%clk 0:01:35.3]} 28. Rab1 {[%clk 0:00:48.7]} 28... Rxc4 {[%clk
0:01:35.1]} 29. Rxb6 {[%clk 0:00:49.5]} 29... Rxb6 {[%clk 0:01:37]} 30. Rxb6
{[%clk 0:00:51.1]} 30... f6 {[%clk 0:01:37.2]} 31. Rb7 {[%clk 0:00:51.3]} 31...
Kh7 {[%clk 0:01:38]} 32. h3 {[%clk 0:00:51.1]} 32... h5 {[%clk 0:01:38.4]} 33.
Kf3 {[%clk 0:00:50.2]} 33... Kg6 {[%clk 0:01:39.5]} 34. g4 {[%clk 0:00:50]}
34... hxg4+ {[%clk 0:01:40.2]} 35. hxg4 {[%clk 0:00:51.9]} 35... Ra4 {[%clk
0:01:40.4]} 36. Kg3 {[%clk 0:00:53.1]} 36... Ra3 {[%clk 0:01:37.8]} 37. Kg2
{[%clk 0:00:51.4]} 37... Ra2 {[%clk 0:01:36.8]} 38. Kg3 {[%clk 0:00:52.6]} 38...
Ra3 {[%clk 0:01:37.8]} 39. Kg2 {[%clk 0:00:53.7]} 39... Ra2 {[%clk 0:01:38.5]}
40. Kg3 {[%clk 0:00:54.1]} 40... Ra3 {[%clk 0:01:39.4]} 1/2-1/2

[Event "*** Titled Tuesday Blitz"]
[Site "Chess.com"]
[Date "2019.05.07"]
[Round "5"]
[White "Shant_Sargsyan"]
[Black "GHANDEEVAM2003"]
[Result "1/2-1/2"]
[WhiteElo "2962"]
[BlackElo "2879"]
[TimeControl "180+2"]
[EndTime "14:07:26 PDT"]
[Termination "Game drawn by agreement"]

1. d4 {[%clk 0:03:01.9]} 1... Nf6 {[%clk 0:03:00.2]} 2. c4 {[%clk 0:03:03.1]}
2... e6 {[%clk 0:03:00.3]} 3. Nf3 {[%clk 0:03:04.4]} 3... d5 {[%clk 0:03:01.2]}
4. Nc3 {[%clk 0:03:05.3]} 4... c6 {[%clk 0:03:02.1]} 5. Bg5 {[%clk 0:03:06.4]}
5... Nbd7 {[%clk 0:03:03.2]} 6. e3 {[%clk 0:03:07.7]} 6... Qa5 {[%clk
0:03:04.6]} 7. Nd2 {[%clk 0:03:09.1]} 7... Bb4 {[%clk 0:03:04.9]} 8. Qc2 {[%clk
0:03:09.2]} 8... O-O {[%clk 0:03:05.9]} 9. Rc1 {[%clk 0:03:08.1]} 9... dxc4
{[%clk 0:02:49.1]} 10. Bxf6 {[%clk 0:03:09.1]} 10... Nxf6 {[%clk 0:02:51]} 11.
Nxc4 {[%clk 0:03:09.9]} 11... Qd5 {[%clk 0:02:51.3]} 12. a3 {[%clk 0:02:56.5]}
12... Bxc3+ {[%clk 0:02:50.6]} 13. Qxc3 {[%clk 0:02:58.4]} 13... c5 {[%clk
0:02:44.9]} 14. dxc5 {[%clk 0:02:58.7]} 14... Qxc5 {[%clk 0:02:35.8]} 15. Ne5
{[%clk 0:02:59.1]} 15... Qxc3+ {[%clk 0:02:32.9]} 16. Rxc3 {[%clk 0:03:01]}
16... Nd5 {[%clk 0:02:34.4]} 17. Rc1 {[%clk 0:02:59.6]} 17... f6 {[%clk
0:02:31.4]} 18. Nc4 {[%clk 0:03:01]} 18... Bd7 {[%clk 0:02:28.5]} 19. Nd6 {[%clk
0:03:02]} 19... Bc6 {[%clk 0:02:25]} 20. b4 {[%clk 0:02:59.1]} 20... Rad8 {[%clk
0:02:22.4]} 21. Nc4 {[%clk 0:03:00.3]} 21... Bb5 {[%clk 0:02:17.6]} 22. Na5
{[%clk 0:02:55.5]} 22... Rc8 {[%clk 0:02:10.5]} 23. Rxc8 {[%clk 0:02:28.9]}
23... Rxc8 {[%clk 0:02:12.4]} 24. Kd2 {[%clk 0:02:30.7]} 24... Bxf1 {[%clk
0:02:02]} 25. Rxf1 {[%clk 0:02:32.6]} 25... b6 {[%clk 0:02:02.5]} 26. Nb3 {[%clk
0:02:33.3]} 26... Rc3 {[%clk 0:01:56.3]} 27. Rb1 {[%clk 0:02:32.4]} 27... f5
{[%clk 0:01:57.7]} 28. a4 {[%clk 0:02:09.7]} 28... Rc4 {[%clk 0:01:46.8]} 29.
Nd4 {[%clk 0:02:08.7]} 29... Kf7 {[%clk 0:01:47.4]} 30. Nc2 {[%clk 0:02:04.1]}
30... Nc3 {[%clk 0:01:46.7]} 31. Rb3 {[%clk 0:01:48.6]} 31... Ne4+ {[%clk
0:01:42.5]} 32. Kd3 {[%clk 0:01:47.1]} 32... Rc7 {[%clk 0:01:30.7]} 33. f3
{[%clk 0:01:46.7]} 33... Nd6 {[%clk 0:01:13.8]} 34. Nd4 {[%clk 0:01:41.3]} 34...
e5 {[%clk 0:01:13.4]} 35. Nb5 {[%clk 0:01:41.7]} 35... Nxb5 {[%clk 0:01:14.3]}
36. axb5 {[%clk 0:01:43.6]} 36... Ke6 {[%clk 0:01:15.8]} 37. Ra3 {[%clk
0:01:44.1]} 37... Rd7+ {[%clk 0:01:12.1]} 38. Kc2 {[%clk 0:01:33.6]} 38... Rc7+
{[%clk 0:01:10.9]} 1/2-1/2